Cogmind - Beta 15 @@@ ROGUE MODE // 2025.05.17 @ 23:58:05 Player: LightKnight Result: Destroyed by S-43 Plague with Heavy Machine Gun Performance ------------- Evolutions (9) 4500 Regions Visited (25) 5000 Robots Destroyed (133) 665 Value Destroyed (7526) 7526 Prototype IDs (83) 1660 Alien Tech Used (0) 0 Bonus (10639) 10639 TOTAL SCORE: 29990 Bonus ------- High Alert Combat Kills 469 Follower Combat Kills 2658 Network Hubs Disabled 200 Registered with UFD 300 Met Optimus in HQ 500 Met Imprinter 300 Met Zhirov 300 Met Warlord at Base 500 MAIN.C Attacked Warlord 500 Warlord Defense Kills 2904 Built Enhanced Grunts 300 Met R17 at Cetus 500 Met R17 at Research 2000 Scanned by Researcher 500 Friendly Fire -1292 Cogmind --------- Core Integrity 0/1600 Matter 120/300 Energy 97/100 System Corruption 1% Temperature Cool (0) Movement Core (150) Ox2 Location -1/Command Parts ------- > --- POWER (2) -------- (None) > --- PROPULSION (6) --- (None) > --- UTILITY (13) ----- Advanced System Shield > --- WEAPON (4) ------- Vibroblade Vibroblade > --- INVENTORY (5) ---- Quantum Rifle Stasis Projector Vibroblade Peak State ------------ > --- POWER ------------ Vortex Chain Reactor > --- PROPULSION ------- Advanced Heavy Treads Centrium Heavy Treads Centrium Heavy Treads > --- UTILITY ---------- Coolant Network Huge Storage Unit Long-range Sensor Array Improved Signal Interpreter Experimental Core Analyzer Advanced Kinecellerator Advanced Weapon Cycler Centrium Medium Armor Plating Improved Force Field Advanced Point Defense System > --- WEAPON ----------- Compact Linear Accelerator Omega Cannon Stasis Projector > --- INVENTORY -------- Light Antimatter Reactor Light Antimatter Reactor Improved Quantum Reactor Heavy Siege Treads Spiked Heavy Treads Biometal Medium Treads Biometal Medium Treads Experimental Cooling System Experimental Cloaking Device Improved System Restoration Module Phase Gun Phase Gun Vortex Shotgun Vortex Shotgun Vortex Rail Matter Neutralizer Advanced KE Penetrator Advanced KE Penetrator Linear Accelerator Fusion Bomb Launcher Improved Plasma Cutter Signal Generator Sapper Charge [Rating: 215] Favorites ----------- Power Deuterium Engine Engine Deuterium Engine Power Core Neutrino Core Reactor Vortex Chain Reactor Propulsion Centrium Heavy Treads Treads Centrium Heavy Treads Leg Carbon-fiber Leg Flight Unit Makeshift Flight Unit Utility Improved Hacking Suite Device Experimental Heat Sink Storage Huge Storage Unit Processor Improved Signal Interpreter Hackware Improved Hacking Suite Protection Tower Shield Weapon Advanced KE Penetrator Energy Gun Subdweller Laser Energy Cannon Light EM Pulse Cannon Ballistic Gun Advanced KE Penetrator Ballistic Cannon Linear Accelerator Launcher Mini Grenade Launcher Special Weapon Flamer Slashing Weapon Makeshift Sword Piercing Weapon Makeshift Spear Build | -11 -10 -10 -10 -8 -8 -6 -6 -6 -6 -5 -5 -5 -5 -5 -5 -4 -4 -4 -4 -3 -3 -2 -2 -1 -1 ------- Run | Yrd Mat Min Sub Rec Scr Fac Low Low Zio Pro Fac Ext Cet Arc Hub Fac Upp Upp War Pro Res Res Tes Acc Com Slots Evolved 18 | . . . . . . 8 . . . . 2 . . . . 2 . . . . 2 2 . 2 . Power 1 | . . . . . . 1 . . . . . . . . . . . . . . . . . . . Propulsion 4 | . . . . . . 3 . . . . 1 . . . . . . . . . . . . . . Utility 11 | . . . . . . 4 . . . . 1 . . . . . . . . . 2 2 . 2 . Weapon 2 | . . . . . . . . . . . . . . . . 2 . . . . . . . . . Parts Attached 184 | . . 5 14 4 11 8 5 . 8 17 8 33 5 . 5 6 1 3 15 1 7 2 11 7 8 Power 20 | . . . 1 1 2 1 1 . 1 2 . 5 . . 1 1 . 1 1 . . . . 1 1 Engine 11 | . . . 1 1 2 1 1 . 1 2 . 2 . . . . . . . . . . . . . Core 2 | . . . . . . . . . . . . 2 . . . . . . . . . . . . . Reactor 7 | . . . . . . . . . . . . 1 . . 1 1 . 1 1 . . . . 1 1 Propulsion 50 | . . 2 . 2 2 4 1 . 3 6 . 19 1 . 1 1 . . . 1 1 . 2 3 1 Treads 17 | . . 2 . 2 2 . . . . 2 . 2 1 . 1 1 . . . 1 1 . 2 . . Leg 18 | . . . . . . . . . . 4 . 14 . . . . . . . . . . . . . Wheel . | . . . . . . . . . . . . . . . . . . . . . . . . . . Hover . | . . . . . . . . . . . . . . . . . . . . . . . . . . Flight 15 | . . . . . . 4 1 . 3 . . 3 . . . . . . . . . . . 3 1 Utility 64 | . . 1 7 . 2 2 2 . 3 6 7 5 . . 2 3 1 . 8 . 5 2 2 2 4 Device 34 | . . 1 3 . . 1 2 . 3 3 2 2 . . 1 2 1 . 6 . 2 2 1 1 1 Storage 5 | . . . 1 . 1 . . . . . . 1 . . . 1 . . . . . . 1 . . Processor 8 | . . . . . 1 1 . . . . 1 1 . . . . . . 1 . 1 . . 1 1 Hackware 9 | . . . . . . . . . . 1 4 . . . 1 . . . . . 1 . . . 2 Protection 8 | . . . 3 . . . . . . 2 . 1 . . . . . . 1 . 1 . . . . Artifact . | . . . . . . . . . . . . . . . . . . . . . . . . . . Weapon 50 | . . 2 6 1 5 1 1 . 1 3 1 4 4 . 1 1 . 2 6 . 1 . 7 1 2 Energy Gun 13 | . . . 3 . 1 . . . . 1 . . . . 1 . . . 3 . . . 3 1 . Energy Cannon 6 | . . . 1 1 2 . . . . . . . 1 . . . . . 1 . . . . . . Ballistic Gun 12 | . . 1 2 . 2 . . . . . . 1 2 . . 1 . 2 1 . . . . . . Ballistic Cannon 6 | . . . . . . . . . . . . 2 1 . . . . . . . 1 . 2 . . Launcher 3 | . . 1 . . . 1 . . . . . . . . . . . . . . . . 1 . . Special Weapon 5 | . . . . . . . . . . 2 . 1 . . . . . . 1 . . . 1 . . Impact Weapon . | . . . . . . . . . . . . . . . . . . . . . . . . . . Slashing Weapon 4 | . . . . . . . 1 . 1 . . . . . . . . . . . . . . . 2 Piercing Weapon 1 | . . . . . . . . . . . 1 . . . . . . . . . . . . . . Special Melee Weapon . | . . . . . . . . . . . . . . . . . . . . . . . . . . Unidentified Prototypes 27 | . . . . . . . 1 . 1 . 1 . 2 . 2 . . . 11 . 1 . 4 2 2 Corrupted Parts 5 | . . . . . . . . . . 2 . . . . 3 . . . . . . . . . . System Corruption 24 | . . . . . . . . . . 9 . . . . 15 . . . . . . . . . . Parts Lost 77 | . . . 3 . 10 . 1 . . 19 . 6 1 . 1 . . 3 1 . . . 21 2 9 Power 7 | . . . . . . . . . . 4 . . . . . . . . . . . . 3 . . Propulsion 17 | . . . . . 1 . 1 . . 5 . 1 . . 1 . . . . . . . 4 . 4 Utility 33 | . . . 1 . 5 . . . . 6 . 4 . . . . . 1 1 . . . 9 2 4 Weapon 20 | . . . 2 . 4 . . . . 4 . 1 1 . . . . 2 . . . . 5 . 1 Highest Loss Streak 16 | . . . 1 . 10 . 1 . . 8 . 2 1 . 1 . . 3 1 . . . 16 2 6 To Critical Strikes 3 | . . . . . . . . . . . . . 1 . . . . . . . . . 2 . . Average Backups 9 | . 6 7 6 4 5 2 3 3 3 4 4 5 7 7 7 11 16 18 20 21 20 20 17 3 3 Power 1 | . 1 1 . 1 . . . . . . . . . 1 1 2 3 3 3 3 3 3 2 . . Propulsion 1 | . 3 3 1 1 . . . . . . . . 2 2 2 1 3 3 3 2 2 4 3 1 . Utility 3 | . . 1 2 1 2 . 2 3 3 3 3 1 1 1 1 5 7 6 7 8 5 3 2 . . Weapon 2 | . 1 2 1 1 1 1 1 . . 1 1 2 1 3 3 2 3 4 5 7 8 9 8 1 2 Tool/Special . | . . . . . . . . . . . . . . . . . . . . . . . . . . Unused Backups 40 | . 8 . 9 . 7 1 1 . . . . 1 1 . . . . . 5 . 2 . 2 1 2 Power 5 | . 1 . 2 . 1 . . . . . . . . . . . . . 1 . . . . . . Propulsion 11 | . 4 . 3 . 1 . . . . . . . . . . . . . 2 . . . 1 . . Utility 12 | . 1 . 3 . 3 1 1 . . . . . 1 . . . . . 1 . . . 1 . . Weapon 12 | . 2 . 1 . 2 . . . . . . 1 . . . . . . 1 . 2 . . 1 2 Tool/Special . | . . . . . . . . . . . . . . . . . . . . . . . . . . Average Slot Usage (%) 66 | . 94 100 83 41 53 7 53 60 84 80 32 81 95 94 92 83 84 83 76 72 75 77 67 17 24 Engine 5 | . 14 14 12 6 9 . 5 6 12 5 . 1 . . . . . . . . . . . . . Reactor 2 | . . . . . . . . . . . . . 5 5 5 10 10 10 5 5 4 4 3 2 1 Treads 12 | . . . 24 14 17 . . . . 1 . 2 3 5 5 15 15 15 15 14 13 13 10 . . Leg 2 | . 28 27 . . . . . . . 14 2 16 26 23 21 . . . . . . . . . . Flight 3 | . . . . . . 2 22 26 32 14 5 4 . . . . . . . . . . . 6 9 Device 9 | . . 12 8 . . 1 9 13 19 11 4 12 11 11 11 19 21 20 11 15 18 25 22 . . Storage 3 | . 14 14 7 . 2 . . . . . . 1 5 5 5 5 5 5 5 5 4 4 4 . . Processor 3 | . . . . . 3 . 6 6 6 6 5 5 5 5 5 . . . 4 5 4 8 8 8 6 Hackware 3 | . . . . . . . . . . 5 10 14 11 11 11 10 10 10 9 5 5 . . . 3 Protection 3 | . 8 1 4 7 6 . . . . 8 . . 5 5 4 . . . 2 . 2 4 3 . . Energy Gun 3 | . . . 13 4 1 . . . . . . . . . . 5 5 4 6 5 3 . 1 . . Energy Cannon 4 | . . . 8 9 10 . . . . . . . . . . . . . 1 5 4 4 . . . Ballistic Gun 4 | . 28 22 1 . 1 . . . . . . 3 8 11 11 14 15 15 12 10 9 8 2 . . Peak Build Rating 215 | . 7 7 29 33 73 23 53 55 73 63 45 87 101 101 105 147 147 151 173 172 187 202 215 52 70 Average Rating 78 | . 6 6 15 30 42 5 36 51 61 46 26 69 95 101 100 144 147 149 161 170 178 201 179 37 47 On Entrance 75 | 6 6 7 7 29 32 17 23 51 51 63 25 38 79 101 101 105 147 147 142 173 162 187 202 16 52 Naked Turns 219 | . . . . . . 219 . . . . . . . . . . . . . . . . . . . Heaviest Build 193 | 13 14 16 55 59 95 16 22 23 32 31 3 53 60 53 54 146 147 147 158 152 177 183 193 17 17 Greatest Support 240 | 20 20 40 40 43 93 43 21 21 37 70 8 100 100 70 80 240 240 240 240 240 230 230 230 30 21 Greatest Overweight (x) 36 | . . . 1 2 1 3 1 1 . 2 . 2 . . . . . . . . 1 . 36 . 2 Average Overweight (x) . | . . . . 1 . . . . . . . . . . . . . . . . . . . . . Largest Inventory Capacity 25 | . 8 8 25 5 15 5 5 5 5 5 5 10 10 10 10 25 25 25 25 25 25 25 25 5 5 Average Capacity 12 | . 8 8 6 5 8 5 5 5 5 5 5 6 10 10 10 24 25 25 25 25 25 25 23 5 5 Most Carried 25 | . 7 8 8 5 15 5 5 5 5 5 5 10 10 9 10 17 17 22 25 25 25 25 25 5 5 Average Carried 10 | . 6 7 6 4 5 4 4 4 4 4 4 5 8 9 9 12 17 20 24 25 24 24 20 4 4 Final Capacity 25 | 8 8 8 5 5 5 5 5 5 5 5 5 10 10 10 10 25 25 25 25 25 25 25 5 5 5 Final Carried 25 | 6 6 8 5 5 5 4 5 5 5 5 5 9 9 9 8 17 17 20 25 25 25 24 5 4 3 Class Distribution -------------------- 42% | Mutant 23% | Scavenger-Tank 7% | Gunner 6% | Scavenger-Mutant 5% | Derelict-Mutant 4% | Scavenger-Gunner 3% | Hacker-Mutant 3% | Sprinter Dominant Class ---------------- Mutant | -10/Materials Mutant | -10/Mines Mutant | -10/Subcaves Mutant | -8/Recycling Mutant | -8/Scraptown Mutant | -6/Factory Sprinter | -6/Lower Caves Sprinter | -6/Lower Caves Derelict-Mutant | -6/Zion Derelict-Mutant | -5/Proximity Caves Hacker-Mutant | -5/Factory Hacker-Mutant | -5/Extension Scavenger-Mutant | -5/Cetus Scavenger-Mutant | -5/Archives Scavenger-Mutant | -5/Hub_04(d) Scavenger-Tank | -4/Factory Scavenger-Tank | -4/Upper Caves Scavenger-Tank | -4/Upper Caves Scavenger-Tank | -4/Warlord Scavenger-Gunner | -3/Proximity Caves Scavenger-Tank | -3/Research Scavenger-Tank | -2/Research Scavenger-Tank | -2/Testing Mutant | -1/Access Mutant | -1/Command Resources | -11 -10 -10 -10 -8 -8 -6 -6 -6 -6 -5 -5 -5 -5 -5 -5 -4 -4 -4 -4 -3 -3 -2 -2 -1 -1 ----------- Run | Yrd Mat Min Sub Rec Scr Fac Low Low Zio Pro Fac Ext Cet Arc Hub Fac Upp Upp War Pro Res Res Tes Acc Com Matter Collected 6806 | 187 . 92 233 80 30 114 482 8 1798 230 . 773 272 . 154 341 9 277 369 208 260 37 668 . 184 Remotely . | . . . . . . . . . . . . . . . . . . . . . . . . . . Salvage Created 6301 | . . 92 411 87 124 . 20 . . 422 . 426 207 . 270 589 . 324 1242 158 725 80 1012 . 112 Parts 286 | . . 12 28 4 6 . . . . 21 . 22 7 . 9 26 . 13 41 3 43 4 34 . 13 Haulers Intercepted . | . . . . . . . . . . . . . . . . . . . . . . . . . . Recyclers Shooed 3 | . . 1 . . . . . . . . . . . . 1 1 . . . . . . . . . Parts Field Recycled . | . . . . . . . . . . . . . . . . . . . . . . . . . . Retrieved Matter . | . . . . . . . . . . . . . . . . . . . . . . . . . . Parts Self-Destructed 47 | . . . 13 . . . . . . 18 . . . . . . . 13 . 3 . . . . . Prevented 2 | . . . . . . . . . . 2 . . . . . . . . . . . . . . . Kills | -11 -10 -10 -10 -8 -8 -6 -6 -6 -6 -5 -5 -5 -5 -5 -5 -4 -4 -4 -4 -3 -3 -2 -2 -1 -1 ------- Run | Yrd Mat Min Sub Rec Scr Fac Low Low Zio Pro Fac Ext Cet Arc Hub Fac Upp Upp War Pro Res Res Tes Acc Com Combat Hostiles Destroyed 119 | . . 6 11 1 2 . . . . 10 . 8 3 . 2 9 . 5 22 2 13 1 21 . 3 Melee 12 | . . . . . . . . . . 6 . 3 . . . . . . . . . . . . 3 Guns 59 | . . 3 2 . 2 . . . . . . 3 1 . 2 9 . 5 17 2 8 . 5 . . Cannons 30 | . . . 6 1 . . . . . . . 2 2 . . . . . 4 . 4 1 10 . . AOE 16 | . . 3 3 . . . . . . 4 . . . . . . . . . . . . 6 . . Classes Destroyed 25 | . . 2 1 2 2 . . . . 4 . 1 . . 1 . . 1 7 . 2 . 1 . 1 Worker 3 | . . . . . . . . . . . . . . . 2 . . . . . . . 1 . . Builder 2 | . . . . . . . . . . . . 1 . . . . . . . . . . 1 . . Tunneler 1 | . . 1 . . . . . . . . . . . . . . . . . . . . . . . Recycler 1 | . . . . 1 . . . . . . . . . . . . . . . . . . . . . Operator 1 | . . . . . . . . . . . . . . . . . . . . . 1 . . . . Drone 1 | . . . . . . . . . . 1 . . . . . . . . . . . . . . . Watcher 1 | . . . . . . . . . . . . . . . . . . . . . 1 . . . . Swarmer 24 | . . 6 . . . . . . . 2 . 3 . . . . . 1 1 . 5 . 5 . 1 Cutter 2 | . . . . . . . . . . . . . . . . . . . . . . . . . 2 Saboteur 2 | . . . . . . . . . . . . . . . . . . . 2 . . . . . . Grunt 40 | . . . . . . . . . . 5 . 4 . . 1 5 . 1 9 . 7 . 8 . . Brawler 2 | . . . . . . . . . . . . . . . . . . . 2 . . . . . . Duelist 3 | . . . . . . . . . . 1 . . . . . . . . 2 . . . . . . Protector 1 | . . . . . . . . . . . . . . . . . . . 1 . . . . . . Researcher 3 | . . . . . . . . . . . . . . . . . . . . . . . 3 . . Sentry 7 | . . . . 1 . . . . . . . 1 . . 1 1 . 1 . . 1 1 . . . Demolisher 1 | . . . . . . . . . . . . . . . . . . . 1 . . . . . . Hunter 10 | . . . . . . . . . . . . . . . . . . 2 1 2 . . 5 . . Programmer 8 | . . . . . . . . . . 1 . . . . . 3 . . 1 . . . 3 . . Cetus Guard 3 | . . . . . . . . . . . . . 3 . . . . . . . . . . . . Enhanced Grunt 1 | . . . . . . . . . . . . . . . 1 . . . . . . . . . . Striker 1 | . . . . . . . . . . . . . . . . . . . 1 . . . . . . Executioner 1 | . . . . . . . . . . . . . . . . . . . 1 . . . . . . Subdweller 11 | . . . 11 . . . . . . . . . . . . . . . . . . . . . . Scrapper 1 | . . . . . 1 . . . . . . . . . . . . . . . . . . . . Fireman 1 | . . . . . . . . . . . . . . . . . . . 1 . . . . . . Mutant 1 | . . . . . 1 . . . . . . . . . . . . . . . . . . . . Best Kill Streak 13 | . . 4 2 1 1 . . . . 4 . 4 1 . 2 3 . 3 11 2 5 1 13 . 1 Combat Bots Only 11 | . . 3 2 1 1 . . . . 4 . 3 1 . 2 3 . 3 11 2 5 1 8 . 1 Max Kills in Single Turn 5 | . . 2 2 1 1 . . . . 2 . 1 1 . 3 2 . 1 2 1 2 1 5 . 1 Gunslinging 1 | . . . . . . . . . . . . . . . . 1 . . . . . . . . . Exploded 5 | . . 2 2 . . . . . . 2 . . . . . . . . . . . . 5 . . Melee 1 | . . . . . . . . . . 1 . 1 . . . . . . . . . . . . 1 Uniques/NPCs Destroyed . | . . . . . . . . . . . . . . . . . . . . . . . . . . Combat | -11 -10 -10 -10 -8 -8 -6 -6 -6 -6 -5 -5 -5 -5 -5 -5 -4 -4 -4 -4 -3 -3 -2 -2 -1 -1 -------- Run | Yrd Mat Min Sub Rec Scr Fac Low Low Zio Pro Fac Ext Cet Arc Hub Fac Upp Upp War Pro Res Res Tes Acc Com Hostile Shots Fired 1246 | . . 12 45 2 41 15 4 1 . 161 2 73 18 . 28 35 . 77 73 16 37 2 436 104 64 Missed 357 | . . 4 6 1 8 7 1 . . 56 1 16 6 . 5 11 . 12 27 2 15 . 106 48 25 Hits 889 | . . 8 39 1 33 8 3 1 . 105 1 57 12 . 23 24 . 65 46 14 22 2 330 56 39 Melee 17 | . . . . . . 3 . . . 4 . . . . . . . . 4 . . . . 1 5 Projectile 872 | . . 8 39 1 33 5 3 1 . 101 1 57 12 . 23 24 . 65 42 14 22 2 330 55 34 AOE 5 | . . . . . . . . . . . . . . . . 2 . . 3 . . . . . . Critical Strikes 54 | . . . 5 . . 1 . . . 3 . 3 3 . 4 3 . 4 3 . 2 . 14 4 5 Part Disruptions 1 | . . . . . . . . . . . . . . . . 1 . . . . . . . . . Damage Taken 17535 | . . 117 924 15 454 154 60 19 . 1922 26 1008 316 . 485 637 . 1273 1286 300 279 68 5986 1179 1027 Core 4369 | . . 24 138 . . 141 19 . . 476 26 256 56 . 20 45 . 101 171 20 . . 1257 974 645 Absorbed by Shields 836 | . . . . . . . . . . . . 122 142 . . . . . . . 293 70 209 . . Reduced by Siege Mode 263 | . . . . . . . . . . . . . . . . 7 . 121 . 16 3 . 116 . . Redirected to Shielding 50 | . . . . . . . . . . 50 . . . . . . . . . . . . . . . Regen/Repaired (Parts) 496 | . . . . . . . . . . . . . . . . . . . 496 . . . . . . Core Remaining (%) 58 | 100 . . . . 35 . . . . 25 . . . . 64 . . . . 70 100 . 13 . . Volleys Fired 327 | . . 8 53 1 16 2 . . . 8 . 37 18 . 21 19 . 23 38 6 28 1 47 1 . Largest 4 | . . 2 2 2 4 1 . . . 1 . 2 2 . 2 4 . 4 4 3 4 4 4 1 . Hottest 266 | . . 50 140 140 215 75 . . . 100 . 81 116 . 70 185 . 185 266 178 266 232 232 94 . Shots Fired 779 | . . 16 80 2 28 2 . . . 8 . 66 36 . 43 76 . 65 141 18 90 4 103 1 . Gun 548 | . . 13 38 1 22 1 . . . 5 . 36 10 . 43 76 . 65 117 12 62 2 44 1 . Cannon 209 | . . . 38 1 6 . . . . . . 28 26 . . . . . 24 6 28 2 50 . . Launcher 12 | . . 3 4 . . 1 . . . 2 . . . . . . . . . . . . 2 . . Special 10 | . . . . . . . . . . 1 . 2 . . . . . . . . . . 7 . . Kinetic 484 | . . 13 14 . 18 . . . . . . 64 31 . 43 57 . 47 83 12 40 3 59 . . Thermal 230 | . . . 62 2 10 1 . . . 1 . . 5 . . 19 . 18 52 6 50 1 2 1 . Explosive 12 | . . 3 4 . . 1 . . . 2 . . . . . . . . . . . . 2 . . Electromagnetic 5 | . . . . . . . . . . 5 . . . . . . . . . . . . . . . Entropic 39 | . . . . . . . . . . . . . . . . . . . 6 . . . 33 . . Robot Hit Streak 19 | . . 6 11 3 3 . . . . 3 . 6 9 . 10 8 . 18 19 12 8 3 9 . . Robot Miss Streak 10 | . . 3 3 . 2 1 . . . 2 . 5 3 . 5 4 . 3 6 3 10 1 4 . . Penetration Max 1 | . . . . . . . . . . . . 1 . . 1 . . . 1 . 1 . 1 . . Secondary Targets 11 | . . 1 . . . . . . . . . . . . . 3 . 2 3 . . . 2 . . Max Gunslinging Chain 1 | . . 1 . . . . . . . . . . . . . 1 . 1 1 . . . 1 . . Shots Hit Robots 471 | . . 11 33 2 12 . 2 . . 33 . 36 25 . 22 40 . 39 85 10 39 3 70 . 9 Core Hits 274 | . . 7 19 1 5 . 2 . . 30 . 18 10 . 17 17 . 12 50 6 27 3 47 . 3 Critical Kills 14 | . . . . . 1 . . . . . . 2 3 . . 1 . 2 3 . 2 . . . . Critical Parts Destroyed 34 | . . . . . . . . . . . . 3 6 . 4 6 . 3 7 . 2 . 3 . . Critical Strikes 66 | . . . . . 1 . . . . 6 . 7 13 . 4 7 . 5 11 . 4 . 8 . . Burn 1 | . . . . . . . . . . . . . . . . . . . 1 . . . . . . Meltdown 1 | . . . . . . . . . . . . . . . . . . . . . 1 . . . . Destroy 48 | . . . . . 1 . . . . . . 6 13 . 4 7 . 5 9 . 3 . . . . Blast 5 | . . . . . . . . . . . . . . . . . . . . . . . 5 . . Sever 6 | . . . . . . . . . . 6 . . . . . . . . . . . . . . . Impale 1 | . . . . . . . . . . . . 1 . . . . . . . . . . . . . Detonate 4 | . . . . . . . . . . . . . . . . . . . 1 . . . 3 . . Melee Attacks 81 | . . . . . . . 2 5 1 41 1 13 . . . . . . . . . . . . 18 Impact . | . . . . . . . . . . . . . . . . . . . . . . . . . . Slashing 67 | . . . . . . . 2 5 1 41 . . . . . . . . . . . . . . 18 Piercing 14 | . . . . . . . . . . . 1 13 . . . . . . . . . . . . . Sneak Attacks . | . . . . . . . . . . . . . . . . . . . . . . . . . . Combat Hostiles . | . . . . . . . . . . . . . . . . . . . . . . . . . . Follow-up Attacks 1 | . . . . . . . . . . . . . . . . . . . . . . . . . 1 Damage Inflicted 21017 | . . 323 919 68 274 40 146 . . 1630 . 1153 603 . 1332 1370 . 1069 3782 296 1631 127 5741 9 504 Guns 10674 | . . 106 386 22 200 . . . . 98 . 580 243 . 838 1351 . 1069 2977 150 1188 74 1392 . . Cannons 5330 | . . . 276 28 54 . . . . . . 362 360 . . . . . 691 146 443 53 2917 . . Explosions 2915 | . . 176 257 . . 40 . . . 486 . . . . 465 . . . 114 . . . 1377 . . Melee 1891 | . . . . . . . 146 . . 1046 . 195 . . . . . . . . . . . . 504 Ramming 207 | . . 41 . 18 20 . . . . . . 16 . . 29 19 . . . . . . 55 9 . Kinetic 10854 | . . 106 128 . 178 . . . . . . 942 521 . 838 919 . 901 2071 150 858 127 3115 . . Thermal 4413 | . . . 534 50 76 . . . . . . . 82 . . 432 . 168 1478 146 773 . 674 . . Explosive 1690 | . . 176 257 . . 40 . . . 486 . . . . . . . . . . . . 731 . . Electromagnetic 563 | . . . . . . . . . . 98 . . . . 465 . . . . . . . . . . Impact . | . . . . . . . . . . . . . . . . . . . . . . . . . . Slashing 1696 | . . . . . . . 146 . . 1046 . . . . . . . . . . . . . . 504 Piercing 195 | . . . . . . . . . . . . 195 . . . . . . . . . . . . . Entropic 1399 | . . . . . . . . . . . . . . . . . . . 233 . . . 1166 . . Highest Corruption 21 | . . . . . . . . . . 11 . 4 4 4 21 4 4 . . . . 1 8 . 1 Average Corruption 3 | . . . . . . . . . . 9 . 3 4 4 4 2 3 . . . . 1 1 . 1 Corruption Purged 8 | . . . . . . . . . . 4 . . . . . . 4 . . . . . . . . Corruption Blocked . | . . . . . . . . . . . . . . . . . . . . . . . . . . Effects 56 | . . . . . . . . . . 20 . 4 9 1 7 7 2 . . . . . 6 . . Message Errors 8 | . . . . . . . . . . 3 . 1 1 . 2 1 . . . . . . . . . Matter Fused 20 | . . . . . . . . . . 6 . . 5 . 1 1 2 . . . . . 5 . . Heat Flow Errors 7 | . . . . . . . . . . 2 . . 3 1 . 1 . . . . . . . . . Energy Discharges 6 | . . . . . . . . . . 3 . . . . 1 2 . . . . . . . . . Data Loss (minor) 7 | . . . . . . . . . . 3 . 1 . . 2 1 . . . . . . . . . Data Loss (major) 4 | . . . . . . . . . . 1 . 1 . . . 1 . . . . . . 1 . . Misfires 2 | . . . . . . . . . . . . 1 . . 1 . . . . . . . . . . Alerts 2 | . . . . . . . . . . 2 . . . . . . . . . . . . . . . Overload Shots . | . . . . . . . . . . . . . . . . . . . . . . . . . . Overflow Damage 448 | . . 16 . . . . . . . 11 . . . . 12 . . . . . . . 385 . 24 Projectiles 313 | . . . . . . . . . . . . . . . . . . . . . . . 313 . . Explosions 100 | . . 16 . . . . . . . . . . . . 12 . . . . . . . 72 . . Melee 35 | . . . . . . . . . . 11 . . . . . . . . . . . . . . 24 Knockbacks 22 | . . 1 . . . . . . . . . 1 . . . . . . . . . . 20 . . Impact 2 | . . 1 . . . . . . . . . . . . . . . . . . . . 1 . . Kinetic 17 | . . . . . . . . . . . . 1 . . . . . . . . . . 16 . . Secondary 3 | . . . . . . . . . . . . . . . . . . . . . . . 3 . . Self-Inflicted Damage 307 | . . 58 88 . . . . . . . . . . . 104 . . . . . . . 53 4 . Shots 9 | . . 3 3 . . . . . . . . . . . 1 . . . . . . . 2 . . Rammed 10 | . . . . 1 1 . . . . . . . . . . 1 . . . . . . 5 2 . Targets Rammed 21 | . 1 5 . 2 1 . . . . . . 1 . . 3 1 . . . . . . 5 2 . Kicked 10 | . 1 5 . . . . . . . . . 1 . . 3 . . . . . . . . . . Crushed 1 | . . . . 1 . . . . . . . . . . . . . . . . . . . . . Highest Temperature 415 | . . . 174 81 415 . 11 . 294 162 . 9 243 63 18 336 . 369 200 . 44 . 236 . . Average Temperature 108 | . . . 42 44 215 . 11 . 119 44 . 5 47 44 18 76 . 138 61 . 19 . 92 . . Received Heat Transfer 2408 | . . . 171 . 246 9 30 9 . 493 . 222 22 . 108 81 . 172 105 . 16 4 540 126 54 Effects 3 | . . . . . 3 . . . . . . . . . . . . . . . . . . . . Shutdowns 2 | . . . . . 2 . . . . . . . . . . . . . . . . . . . . Energy Bleed 1 | . . . . . 1 . . . . . . . . . . . . . . . . . . . . Siege Activations 11 | . . . . . . . . . . . . . . . . 2 . 2 1 1 1 . 4 . . Total Turns 116 | . . . . . . . . . . . . . . . . 13 . 36 8 9 9 . 41 . . Longest Duration 28 | . . . . . . . . . . . . . . . . 8 . 19 8 9 9 . 28 . . Martial Activations . | . . . . . . . . . . . . . . . . . . . . . . . . . . Shielding Activations . | . . . . . . . . . . . . . . . . . . . . . . . . . . Robots Disrupted . | . . . . . . . . . . . . . . . . . . . . . . . . . . Combat Hostiles . | . . . . . . . . . . . . . . . . . . . . . . . . . . Robots Corrupted . | . . . . . . . . . . . . . . . . . . . . . . . . . . Combat Hostiles . | . . . . . . . . . . . . . . . . . . . . . . . . . . Parts Fried 4 | . . . . . . . . . . . . . . . 3 . . . 1 . . . . . . Impact Corruptions . | . . . . . . . . . . . . . . . . . . . . . . . . . . Robots Melted 1 | . . . . . . . . . . . . . . . . . . . . . 1 . . . . Combat Hostiles 1 | . . . . . . . . . . . . . . . . . . . . . 1 . . . . Parts Melted 6 | . . . 2 . 1 . . . . . . 1 . . . . . . . . 2 . . . . Heat Transferred 4977 | . . . 695 62 86 . . . . . . . 111 . . 481 . 222 1775 148 860 . 537 . . Parts Sabotaged . | . . . . . . . . . . . . . . . . . . . . . . . . . . Parts Stolen . | . . . . . . . . . . . . . . . . . . . . . . . . . . Parts Stripped . | . . . . . . . . . . . . . . . . . . . . . . . . . . Power Chain Reactions . | . . . . . . . . . . . . . . . . . . . . . . . . . . Alert | -11 -10 -10 -10 -8 -8 -6 -6 -6 -6 -5 -5 -5 -5 -5 -5 -4 -4 -4 -4 -3 -3 -2 -2 -1 -1 ------- Run | Yrd Mat Min Sub Rec Scr Fac Low Low Zio Pro Fac Ext Cet Arc Hub Fac Upp Upp War Pro Res Res Tes Acc Com Maximum Alert Level 4 | . . . . . . . . . . . . 2 2 . 4 3 . . . . . . 2 2 1 Low Security (%) 68 | . 100 100 . 100 . 100 . . . . 100 76 . 100 41 . . . . . 100 100 47 . 25 Level 1 12 | . . . . . . . . . . . . 10 60 . 11 15 . . . . . . 18 62 74 Level 2 16 | . . . . . . . . . . . . 13 39 . 3 80 . . . . . . 33 37 . Level 3 1 | . . . . . . . . . . . . . . . 20 4 . . . . . . . . . Level 4 1 | . . . . . . . . . . . . . . . 23 . . . . . . . . . . Level 5 . | . . . . . . . . . . . . . . . . . . . . . . . . . . High Security . | . . . . . . . . . . . . . . . . . . . . . . . . . . Max Security . | . . . . . . . . . . . . . . . . . . . . . . . . . . Peak Influence 1285 | . 6 84 . 49 . 145 . . . . 177 636 451 156 1285 722 . . . . 166 74 578 523 340 Initial 624 | . . . . . . . . . . . 177 54 342 156 47 624 . . . . . 74 20 292 219 Average 176 | . . 29 . 2 . 16 . . . . 142 140 380 148 521 550 . . . . 47 18 259 374 228 Influence Increases 7463 | . 12 159 . 88 . 190 45 15 . 475 165 1208 239 . 1438 679 . 110 440 50 398 50 990 351 361 Destroy 0b10 Robot/C 3440 | . . 120 . 20 . 80 . . . 300 . 660 160 . 380 260 . 100 420 40 260 20 560 . 60 Destroy 0b10 Robot/NC 90 | . . 5 . 5 . . . . . 10 . 5 10 . 25 5 . . 5 . 10 . 10 . . Destroy Leader 396 | . . 20 . . . 10 . . . 20 . 70 . . 74 60 . 10 . 10 42 10 60 . 10 Allied During Kill 1154 | . . . . . . 9 . . . 70 . 301 59 . 479 192 . . . . . . 44 . . Successful Hack 211 | . 12 . . 63 . 46 . . . . . 42 . . 5 4 . . . . . 14 4 21 . Disable Machine 420 | . . . . . . 30 . . . . 15 15 . . 225 45 . . . . . . 75 15 . Destroy Structure 687 | . . 14 . . . . . . . . . 40 10 . 220 98 . . . . 86 6 207 . 6 Advance Influence 150 | . . . . . . . . . . . 150 . . . . . . . . . . . . . . Partial Spotted 60 | . . . . . . . . . . . . . . . . . . . . . . . 15 . 45 Lose Combat Pursuer 855 | . . . . . . 15 45 15 . 75 . 75 . . 30 15 . . 15 . . . 15 315 240 Influence Decreases 7123 | . 12 159 . 88 . 55 180 15 . 431 97 708 460 255 299 1243 444 369 136 362 266 146 537 497 364 Entered New Map 2401 | . . . . . . . 51 . . . 17 58 270 235 89 651 264 51 8 312 . 58 16 197 124 Time Decay 3395 | . 12 159 . 88 . 55 119 15 . 211 80 365 140 20 180 362 180 306 128 50 266 88 291 130 150 Search Patrol Dispatched 150 | . . . . . . . . . . . . . . . . . . . . . . . . 150 . Lost Part 534 | . . . . . . . 10 . . 120 . 52 10 . 10 . . 12 . . . . 210 20 90 Lost Ally 479 | . . . . . . . . . . 100 . 219 40 . 20 80 . . . . . . 20 . . Purge Threat 164 | . . . . . . . . . . . . 14 . . . 150 . . . . . . . . . Squads Dispatched 40 | . . . . . . 2 . . . 1 1 2 . . 4 1 . . . . 6 1 13 3 6 Investigation 7 | . . . . . . 1 . . . . . 1 . . 1 . . . . . 2 . 1 . 1 Extermination 9 | . . . . . . 1 . . . . . . . . 1 1 . . . . . 1 2 1 2 Reinforcement 19 | . . . . . . . . . . . 1 1 . . 2 . . . . . 4 . 7 2 2 Assault 2 | . . . . . . . . . . 1 . . . . . . . . . . . . . . 1 Garrison 3 | . . . . . . . . . . . . . . . . . . . . . . . 3 . . Intercept . | . . . . . . . . . . . . . . . . . . . . . . . . . . Searches Triggered 1 | . . . . . . . . . . . . . . . . . . . . . . . . 1 . Construction Impeded 2 | . . . . . . . . . . . . 1 . . . . . . . . . . 1 . . Haulers Reinforced 2 | . . . . . . . . . . . . . . . . . . . . . 1 . 1 . . Active Scanning Responses . | . . . . . . . . . . . . . . . . . . . . . . . . . . Cargo Convoy Interrupts . | . . . . . . . . . . . . . . . . . . . . . . . . . . Stealth | -11 -10 -10 -10 -8 -8 -6 -6 -6 -6 -5 -5 -5 -5 -5 -5 -4 -4 -4 -4 -3 -3 -2 -2 -1 -1 --------- Run | Yrd Mat Min Sub Rec Scr Fac Low Low Zio Pro Fac Ext Cet Arc Hub Fac Upp Upp War Pro Res Res Tes Acc Com Distress Signals 16 | . . . . . . 2 . . . . . 1 2 . 5 . . . . . 3 . 1 2 . Communications Jammed . | . . . . . . . . . . . . . . . . . . . . . . . . . . Distress Signals . | . . . . . . . . . . . . . . . . . . . . . . . . . . Times Spotted 351 | . . 6 17 1 17 12 3 2 . 28 2 34 12 . 20 14 . 5 56 2 24 2 50 24 20 Peak Tracking Total 20 | . . 3 6 1 7 6 3 4 . 9 1 7 5 . 7 4 . 3 15 2 6 1 14 20 11 Tactical Retreats 31 | . . . . . 4 2 1 1 . 2 . 5 . . 2 1 . . 1 . . . 1 6 5 Traps | -11 -10 -10 -10 -8 -8 -6 -6 -6 -6 -5 -5 -5 -5 -5 -5 -4 -4 -4 -4 -3 -3 -2 -2 -1 -1 ------- Run | Yrd Mat Min Sub Rec Scr Fac Low Low Zio Pro Fac Ext Cet Arc Hub Fac Upp Upp War Pro Res Res Tes Acc Com Traps Triggered 12 | . . . 1 . . 1 . . . . . 3 . . 2 . . . . . . 2 1 . 2 Indirectly 2 | . . . . . . . . . . . . . . . 2 . . . . . . . . . . Trap Hack Attempts . | . . . . . . . . . . . . . . . . . . . . . . . . . . Triggered . | . . . . . . . . . . . . . . . . . . . . . . . . . . Disarmed . | . . . . . . . . . . . . . . . . . . . . . . . . . . Reprogrammed . | . . . . . . . . . . . . . . . . . . . . . . . . . . Reused 1 | . . . . . . . . . . 1 . . . . . . . . . . . . . . . Traps Extracted . | . . . . . . . . . . . . . . . . . . . . . . . . . . Installed 6 | . . 5 . . . . . . . 1 . . . . . . . . . . . . . . . Triggered 1 | . . . . . . . . . . 1 . . . . . . . . . . . . . . . Most Traps Carried 1 | . . . . . 1 1 1 1 1 1 . . . . . . . . . . . . . . . Time Bombs Activated 1 | . . . . . . . . . . . . . . . . . . . . . . . 1 . . Exploded 1 | . . . . . . . . . . . . . . . . . . . . . . . 1 . . Machines | -11 -10 -10 -10 -8 -8 -6 -6 -6 -6 -5 -5 -5 -5 -5 -5 -4 -4 -4 -4 -3 -3 -2 -2 -1 -1 ---------- Run | Yrd Mat Min Sub Rec Scr Fac Low Low Zio Pro Fac Ext Cet Arc Hub Fac Upp Upp War Pro Res Res Tes Acc Com Machines Disabled 39 | . . . 1 . 5 2 . . . . 1 2 . . 15 3 . . 3 . . . 6 1 . Max in Single Turn 2 | . . . 1 . 1 2 . . . . 1 1 . . 2 1 . . 1 . . . 1 1 . Garrison Access 1 | . . . . . . . . . . . 1 . . . . . . . . . . . . . . Network Hub 1 | . . . . . . . . . . . . . . . 1 . . . . . . . . . . Machines Repaired . | . . . . . . . . . . . . . . . . . . . . . . . . . . Machines Dismantled 1 | . . . . . . . . . . . . . . . . . . . 1 . . . . . . Machines Sabotaged . | . . . . . . . . . . . . . . . . . . . . . . . . . . Overloaded Fab Kills . | . . . . . . . . . . . . . . . . . . . . . . . . . . Hacking | -11 -10 -10 -10 -8 -8 -6 -6 -6 -6 -5 -5 -5 -5 -5 -5 -4 -4 -4 -4 -3 -3 -2 -2 -1 -1 --------- Run | Yrd Mat Min Sub Rec Scr Fac Low Low Zio Pro Fac Ext Cet Arc Hub Fac Upp Upp War Pro Res Res Tes Acc Com Machines Accessed 49 | . 2 . 4 5 5 2 1 . . . 1 11 . . 1 2 . . 3 . 2 2 2 3 3 Terminals 33 | . 1 . . 5 . 2 . . . . . 11 . . 1 2 . . . . 1 2 2 3 3 Fabricators . | . . . . . . . . . . . . . . . . . . . . . . . . . . Repair Stations 1 | . 1 . . . . . . . . . . . . . . . . . . . . . . . . Recycling Units . | . . . . . . . . . . . . . . . . . . . . . . . . . . Scanalyzers . | . . . . . . . . . . . . . . . . . . . . . . . . . . Garrison Access 2 | . . . . . . . . . . . 1 . . . . . . . . . 1 . . . . Total Hacks 126 | . 5 . 9 13 15 5 1 . . . 2 27 . . 3 6 . . 8 . 2 6 11 5 8 Successful 75 | . 2 . 9 7 15 3 1 . . . 1 18 . . 1 5 . . 8 . . 1 1 3 . Failed 50 | . 3 . . 5 . 2 . . . . 1 9 . . 2 1 . . . . 2 5 10 2 8 Catastrophic 11 | . 1 . . 1 . 1 . . . . . . . . . . . . . . 1 1 3 1 2 Database Lockouts 1 | . . . . 1 . . . . . . . . . . . . . . . . . . . . . Manual 34 | . 3 . . 7 . 2 . . . . . 9 1 . . 3 . . . . 1 6 . . 2 Terminals 88 | . 3 . . 13 . 5 . . . . . 27 . . 3 6 . . . . 1 6 11 5 8 Fabricators . | . . . . . . . . . . . . . . . . . . . . . . . . . . Repair Stations 2 | . 2 . . . . . . . . . . . . . . . . . . . . . . . . Recycling Units . | . . . . . . . . . . . . . . . . . . . . . . . . . . Scanalyzers . | . . . . . . . . . . . . . . . . . . . . . . . . . . Garrison Access 3 | . . . . . . . . . . . 2 . . . . . . . . . 1 . . . . Terminal Hacks 65 | . 1 . 9 5 15 2 1 . . . . 15 . . 1 4 . . 8 . . . 1 3 . Record 12 | . . . 6 . 5 . . . . . . . . . . . . . 1 . . . . . . Part Schematic 4 | . . . . 2 . . . . . . . 2 . . . . . . . . . . . . . Robot Analysis 10 | . . . . . 8 1 . . . . . 1 . . . . . . . . . . . . . Prototype ID Bank 13 | . 1 . . 3 . . . . . . . 1 . . . 2 . . 6 . . . . . . Open Door 16 | . . . 1 . 1 . 1 . . . . 8 . . . . . . 1 . . . 1 3 . Level Access Points 1 | . . . . . . . . . . . . . . . 1 . . . . . . . . . . Branch Access Points 2 | . . . . . . 1 . . . . . . . . . 1 . . . . . . . . . Unreport Threat 2 | . . . . . . . . . . . . 1 . . . 1 . . . . . . . . . Locate Traps 2 | . . . . . . . . . . . . 2 . . . . . . . . . . . . . Proto ID Catalog 2 | . . . 1 . 1 . . . . . . . . . . . . . . . . . . . . Release Object 1 | . . . 1 . . . . . . . . . . . . . . . . . . . . . . Fabricator Hacks . | . . . . . . . . . . . . . . . . . . . . . . . . . . Repair Station Hacks 1 | . 1 . . . . . . . . . . . . . . . . . . . . . . . . Refit 1 | . 1 . . . . . . . . . . . . . . . . . . . . . . . . Recycling Unit Hacks . | . . . . . . . . . . . . . . . . . . . . . . . . . . Scanalyzer . | . . . . . . . . . . . . . . . . . . . . . . . . . . Garrison Access Hacks 1 | . . . . . . . . . . . 1 . . . . . . . . . . . . . . Seal Access 1 | . . . . . . . . . . . 1 . . . . . . . . . . . . . . Unauthorized Hacks 8 | . . . . 2 . 1 . . . . . 3 . . . 1 . . . . . 1 . . . Terminals 8 | . . . . 2 . 1 . . . . . 3 . . . 1 . . . . . 1 . . . Botnet 8 | . . . . 2 . 1 . . . . . 3 . . . 1 . . . . . 1 . . . Fabricators . | . . . . . . . . . . . . . . . . . . . . . . . . . . Repair Stations . | . . . . . . . . . . . . . . . . . . . . . . . . . . Recycling Units . | . . . . . . . . . . . . . . . . . . . . . . . . . . Scanalyzers . | . . . . . . . . . . . . . . . . . . . . . . . . . . Garrison Access . | . . . . . . . . . . . . . . . . . . . . . . . . . . Data Cores Recovered 1 | . . . . . . . . . . . . . . . . . . . . . 1 . . . . Used . | . . . . . . . . . . . . . . . . . . . . . . . . . . Hacking Detections 22 | . 1 . . 5 . 2 . . . . 1 3 . . 1 1 . . . . 2 2 1 . 3 Full Trace Events 4 | . . . . . . 1 . . . . . . . . 1 . . . . . . . 1 . 1 Feedback Events . | . . . . . . . . . . . . . . . . . . . . . . . . . . Feedback Blocked . | . . . . . . . . . . . . . . . . . . . . . . . . . . Robot Schematics Acquired 5 | . . . . . . . . . 4 . . . . . . . . . . . . . 1 . . Robots Built . | . . . . . . . . . . . . . . . . . . . . . . . . . . Authchips . | . . . . . . . . . . . . . . . . . . . . . . . . . . Time . | . . . . . . . . . . . . . . . . . . . . . . . . . . Total Robot Build Rating . | . . . . . . . . . . . . . . . . . . . . . . . . . . Part Schematics Acquired 21 | . . . . 2 . . . . 14 . . 2 . . . . . . . . . . 3 . . Parts Built . | . . . . . . . . . . . . . . . . . . . . . . . . . . Authchips . | . . . . . . . . . . . . . . . . . . . . . . . . . . Time . | . . . . . . . . . . . . . . . . . . . . . . . . . . Total Part Build Rating . | . . . . . . . . . . . . . . . . . . . . . . . . . . Parts Repaired . | . . . . . . . . . . . . . . . . . . . . . . . . . . Time . | . . . . . . . . . . . . . . . . . . . . . . . . . . Parts Recycled . | . . . . . . . . . . . . . . . . . . . . . . . . . . Recycled Matter . | . . . . . . . . . . . . . . . . . . . . . . . . . . Retrieved Matter . | . . . . . . . . . . . . . . . . . . . . . . . . . . Retrieved Components . | . . . . . . . . . . . . . . . . . . . . . . . . . . Parts Scanalyzed . | . . . . . . . . . . . . . . . . . . . . . . . . . . Part Schematics Acquired . | . . . . . . . . . . . . . . . . . . . . . . . . . . Parts Damaged . | . . . . . . . . . . . . . . . . . . . . . . . . . . Bothacking | -11 -10 -10 -10 -8 -8 -6 -6 -6 -6 -5 -5 -5 -5 -5 -5 -4 -4 -4 -4 -3 -3 -2 -2 -1 -1 ------------ Run | Yrd Mat Min Sub Rec Scr Fac Low Low Zio Pro Fac Ext Cet Arc Hub Fac Upp Upp War Pro Res Res Tes Acc Com Used RIF Installer . | . . . . . . . . . . . . . . . . . . . . . . . . . . Robots Hacked . | . . . . . . . . . . . . . . . . . . . . . . . . . . Non-combat . | . . . . . . . . . . . . . . . . . . . . . . . . . . Combat . | . . . . . . . . . . . . . . . . . . . . . . . . . . Robot Hacks Applied . | . . . . . . . . . . . . . . . . . . . . . . . . . . Relay Couplers Released . | . . . . . . . . . . . . . . . . . . . . . . . . . . Fabnet Peak Effective % . | . . . . . . . . . . . . . . . . . . . . . . . . . . Robots Rewired 12 | . . . . . . . . . . 2 . 9 . . . . . . . . . . 1 . . Allies Hacked . | . . . . . . . . . . . . . . . . . . . . . . . . . . Hacks Repelled . | . . . . . . . . . . . . . . . . . . . . . . . . . . Allies | -11 -10 -10 -10 -8 -8 -6 -6 -6 -6 -5 -5 -5 -5 -5 -5 -4 -4 -4 -4 -3 -3 -2 -2 -1 -1 -------- Run | Yrd Mat Min Sub Rec Scr Fac Low Low Zio Pro Fac Ext Cet Arc Hub Fac Upp Upp War Pro Res Res Tes Acc Com Total Allies 33 | . . . . . . . . . 6 2 . 19 5 . . . . . . . . . 1 . . Largest Group 8 | . . . . . . . . . 6 6 . 8 7 7 6 4 . . . . . . 1 . . Highest-Rated Group 673 | . . . . . . . . . 220 220 . 361 673 673 514 384 . . . . . . 159 . . Highest-Rated Ally 159 | . . . . . . . . . 99 99 . 159 159 159 96 96 . . . . . . 159 . . Total Orders . | . . . . . . . . . . . . . . . . . . . . . . . . . . Ally Attacks 324 | . . . . . . 12 . . . 35 . 110 45 . 77 38 . . . . . . 7 . . Total Damage 9307 | . . . . . . 642 . . . 730 . 2618 959 . 2340 1334 . . . . . . 684 . . Kills 72 | . . . . . . 4 . . . 7 . 25 7 . 20 5 . . . . . . 4 . . Allies Corrupted 2 | . . . . . . . . . . 2 . . . . . . . . . . . . . . . Allies Melted 6 | . . . . . 2 . . . . . . 1 . . . . . . 3 . . . . . . Turrets Deployed 1 | . . . . . . 1 . . . . . . . . . . . . . . . . . . . Intel | -11 -10 -10 -10 -8 -8 -6 -6 -6 -6 -5 -5 -5 -5 -5 -5 -4 -4 -4 -4 -3 -3 -2 -2 -1 -1 ------- Run | Yrd Mat Min Sub Rec Scr Fac Low Low Zio Pro Fac Ext Cet Arc Hub Fac Upp Upp War Pro Res Res Tes Acc Com Active Infowar (turns) 4182 | . . 398 438 . . 62 363 250 797 229 163 304 . . . . . . 2 . . 369 789 18 . Optics 172 | . . . 172 . . . . . . . . . . . . . . . . . . . . . . Sensors 3158 | . . . . . . 62 363 250 797 43 163 304 . . . . . . . . . 369 789 18 . Terrain 474 | . . . . . . . 1 . 244 229 . . . . . . . . . . . . . . . Structural 664 | . . 398 266 . . . . . . . . . . . . . . . . . . . . . . Cloaking 125 | . . . . . . . . . . . . . . . . . . . 2 . . . 123 . . Jamming 2 | . . . . . . . . . 2 . . . . . . . . . . . . . . . . ECM 1 | . . . . . . . . . 1 . . . . . . . . . . . . . . . . Robot Analysis Total 10 | . . . . . 8 1 . . . . . 1 . . . . . . . . . . . . . Derelict Logs Recovered 7 | . . . 1 . 3 . 1 . 1 . . . . . . . . 1 . . . . . . . Drone Launches . | . . . . . . . . . . . . . . . . . . . . . . . . . . Drone Recoveries . | . . . . . . . . . . . . . . . . . . . . . . . . . . Exploration | -11 -10 -10 -10 -8 -8 -6 -6 -6 -6 -5 -5 -5 -5 -5 -5 -4 -4 -4 -4 -3 -3 -2 -2 -1 -1 ------------- Run | Yrd Mat Min Sub Rec Scr Fac Low Low Zio Pro Fac Ext Cet Arc Hub Fac Upp Upp War Pro Res Res Tes Acc Com Turns Passed 19837 | . 102 437 1592 1667 5261 340 363 250 797 665 174 965 284 48 360 837 372 781 1582 337 835 373 831 275 309 Spaces Moved 13134 | 1 82 318 807 680 2076 650 935 551 1011 591 285 589 147 41 246 458 232 432 792 196 475 229 411 327 572 Core 900 | . . . . . . 426 . . . 104 20 15 . . . . . . . . . . 109 215 11 Treads 6745 | . . 1 807 680 2076 10 . . . 23 . 31 . . 1 458 232 432 792 196 475 229 302 . . Legs 1573 | 1 82 317 . . . . . . . 237 . 503 147 41 245 . . . . . . . . . . Wheels . | . . . . . . . . . . . . . . . . . . . . . . . . . . Hover . | . . . . . . . . . . . . . . . . . . . . . . . . . . Flight 3916 | . . . . . . 214 935 551 1011 227 265 40 . . . . . . . . . . . 112 561 Fastest Speed 25 | 120 120 120 160 240 165 26 26 31 31 39 50 50 120 120 120 160 160 160 160 155 155 155 50 25 25 Average Speed 127 | 120 120 120 173 241 233 46 30 32 37 78 54 117 120 120 120 160 160 160 160 159 155 155 138 42 40 Slowest Speed 1850 | 120 120 160 240 320 245 200 113 113 41 160 55 260 120 120 160 160 160 160 160 160 240 155 1850 50 150 Overloaded Moves 142 | . . . . . . . . . . . . . . . . . . . . . . . . 80 62 Propulsion Burnouts . | . . . . . . . . . . . . . . . . . . . . . . . . . . Robots Hopped 13 | . . . . . . . . 1 . . 1 . . . . . . . . . . . . 6 5 Potential Cave-ins 8 | . . . . . . . . . . . . 8 . . . . . . . . . . . . . Cave-ins Triggered . | . . . . . . . . . . . . . . . . . . . . . . . . . . Exploration Rate (%) 47 | 2 19 50 56 81 96 14 90 67 88 61 8 65 56 69 40 10 57 50 90 53 19 8 43 13 24 Regions Visited 25 Branch Regions 18 Pre-discovered Areas 4 | . . . . . 2 . 1 . 1 . . . . . . . . . . . . . . . . Known Exits Taken 15 | . . . 1 . . 1 1 1 1 1 1 1 1 1 1 1 . . . . 1 1 1 . . Unknown Exits Taken 10 | 1 1 1 . 1 1 . . . . . . . . . . . 1 1 1 1 . . . 1 . Scrap Searched 25 | . . 2 . . 7 . 9 . 2 1 . . . . . . . 2 . 2 . . . . . Spaces Dug 38 | . . . 3 . 1 . . 5 . . . 4 . . . 15 . 3 . . 1 . 4 . 2 Terrain Destroyed 554 | . . 29 39 . 5 . . 5 . 10 . 23 1 . 166 54 . 43 43 15 55 2 62 . 2 Melee 7 | . . . . . . . . 5 . . . . . . . . . . . . . . . . 2 Projectile 284 | . . . 7 . 5 . . . . . . 23 1 . 12 54 . 43 43 15 55 2 24 . . AOE 263 | . . 29 32 . . . . . . 10 . . . . 154 . . . . . . . 38 . . Terrain Rammed . | . . . . . . . . . . . . . . . . . . . . . . . . . . Walls Destroyed . | . . . . . . . . . . . . . . . . . . . . . . . . . . Machines Disabled . | . . . . . . . . . . . . . . . . . . . . . . . . . . Actions | -11 -10 -10 -10 -8 -8 -6 -6 -6 -6 -5 -5 -5 -5 -5 -5 -4 -4 -4 -4 -3 -3 -2 -2 -1 -1 --------- Run | Yrd Mat Min Sub Rec Scr Fac Low Low Zio Pro Fac Ext Cet Arc Hub Fac Upp Upp War Pro Res Res Tes Acc Com Total 15565 | . 86 355 928 699 2473 684 1015 617 1424 736 301 795 233 40 282 517 232 477 1009 211 532 245 600 455 619 Wait 1391 | . . 12 2 7 343 5 64 59 393 54 . 31 46 . . 18 . 15 121 7 8 14 69 122 1 Move 13085 | . 81 317 806 679 2075 649 934 548 1010 590 282 588 146 40 245 457 231 431 791 195 474 228 411 315 562 Hop 12 | . . . . . . . . 1 . . 1 . . . . . . . . . . . . 5 5 Pick Up 100 | . 2 1 17 1 15 5 2 . 4 1 1 6 6 . 1 11 . 4 10 . 6 . 1 1 5 Fast Attach 125 | . . 1 10 4 10 8 5 . 6 17 6 20 2 . 1 2 . . 10 1 3 1 5 5 8 Attach 49 | . . . 3 . . 2 1 2 4 . 3 4 1 . 3 4 . 2 1 . 2 1 11 2 3 Detach 51 | . . 1 3 . 3 1 3 2 1 4 3 4 2 . 2 3 . . 10 . 3 . 5 1 . Swap 48 | . . 5 5 . 1 . . . 1 . . 11 2 . 2 2 1 2 6 1 2 . 7 . . Drop 137 | . 2 . 26 5 9 10 4 . 4 8 4 16 10 . 4 . . . 13 1 6 . 9 1 5 Fire 327 | . . 8 53 1 16 2 . . . 8 . 37 18 . 21 19 . 23 38 6 28 1 47 1 . Melee 80 | . . . . . . . 2 5 1 41 1 13 . . . . . . . . . . . . 17 Ram 5 | . . . . . . . . . . . . . . . . . . . . . . . 3 2 . Kick 10 | . 1 5 . . . . . . . . . 1 . . 3 . . . . . . . . . . Crush 5 | . . . . 2 1 . . . . . . . . . . 1 . . . . . . 1 . . Escape Stasis 30 | . . . . . . . . . . . . 5 . . . . . . . . . . 12 . 13 Rewire 91 | . . . . . . 2 . . . 12 . 59 . . . . . . . . . . 18 . . Trap 7 | . . 5 . . . . . . . 1 . . . . . . . . . . . . 1 . . Miscellaneous 12 | . . . 3 . . . . . . . . . . . . . . . 9 . . . . . . Route ------- -11/Scrapyard -10/Materials -10/Mines (discovered 3 exits: [*Mat x2] / *Sub) -10/Subcaves (discovered 3 exits: *Mat x2 / *Rec) -8/Recycling -8/Scraptown (discovered 2 exits: *Fac x2) -6/Factory (discovered 3 exits: Fac / *Low x2) -6/Lower Caves -6/Lower Caves (discovered 2 exits: *Fac / *Zio) -6/Zion -5/Proximity Caves -5/Factory -5/Extension (discovered 2 exits: *Fac / *Cet) -5/Cetus (discovered 2 exits: *Fac / *Arc) -5/Archives -5/Hub_04(d) (discovered 4 exits: *Fac x4) -4/Factory (discovered 2 exits: *Upp x2) -4/Upper Caves -4/Upper Caves -4/Warlord -3/Proximity Caves -3/Research (discovered 2 exits: *Res / Qua) -2/Research -2/Testing -1/Access -1/Command History --------- Turn | Location | Event 1 | -11/Scrapyard | Discovered new exit (range 0) 1 | -11/Scrapyard | Entered Materials 84 | -10/Materials | Discovered new exit (range 16) 103 | -10/Materials | Entered Mines 277 | -10/Mines | Discovered new exit (range 8) 314 | -10/Mines | Discovered new exit (range 3) 318 | -10/Mines | Build established: Mutant 480 | -10/Mines | Found a hidden stash of uninstalled traps 515 | -10/Mines | Discovered new exit (range 5) 540 | -10/Mines | Entered Subcaves 541 | -10/Subcaves | Ambushed by Subdwellers from Twisted Machinery 541 | -10/Subcaves | Approached by a straggling Scientist 799 | -10/Subcaves | Shifting Twisted Machinery released Mak. Light Armor Plating 814 | -10/Subcaves | Shifting Twisted Machinery released Sub. Beam Cannon 1071 | -10/Subcaves | Ambushed by Subdweller buried in earth 1226 | -10/Subcaves | Released subatomizers from SUBCON Basin 1275 | -10/Subcaves | A swath of the cavern ceiling suddenly collapsed 1429 | -10/Subcaves | Discovered new exit (range 9) 1473 | -10/Subcaves | A swath of the cavern ceiling suddenly collapsed 1566 | -10/Subcaves | Ambushed by Subdwellers from Twisted Machinery 1568 | -10/Subcaves | Core integrity fell below 50% 1648 | -10/Subcaves | Learned Materials stockpile data 1649 | -10/Subcaves | Shifting Twisted Machinery released Lgt. Humpback 1669 | -10/Subcaves | Shifting Twisted Machinery released Sub. Optics 1762 | -10/Subcaves | Visited 4L-MR0's lab 1779 | -10/Subcaves | Found Tower Shield 1780 | -10/Subcaves | Attached Tower Shield, gained temporary slots: Power, Propulsion x2, Utility x2, Weapon x2 1913 | -10/Subcaves | Visited Clippyterm 1920 | -10/Subcaves | Identified exit to Materials 1920 | -10/Subcaves | Identified exit to Recycling 1920 | -10/Subcaves | Learned Research security intel 2132 | -10/Subcaves | Entered Recycling 3740 | -8/Recycling | Scanned before Scraplab entrance 3775 | -8/Recycling | Entered Scraplab 3797 | -8/Recycling | Discovered new exit (range 2) 3799 | -8/Recycling | Entered Scraptown 4419 | -8/Scraptown | Learned location of Extension (-5) 4931 | -8/Scraptown | Discovered new exit (range 13) 5034 | -8/Scraptown | Scanned Subdweller tech in exchange for log data 5047 | -8/Scraptown | Learned location of 1 exit from Research 5049 | -8/Scraptown | Learned 12 Factory zone layouts 5051 | -8/Scraptown | Learned Research stockpile data 5123 | -8/Scraptown | Visited CR-KLE's Repair Center 5179 | -8/Scraptown | Visited The Evicted 5236 | -8/Scraptown | Visited Spacefarers 5351 | -8/Scraptown | Visited CPS Storage 5449 | -8/Scraptown | Visited Science Testing Area 5488 | -8/Scraptown | Visited Symbiants 5782 | -8/Scraptown | Visited Comm Corps 6299 | -8/Scraptown | Visited UFD Registry 6309 | -8/Scraptown | Registered with UFD as "Cryocycle" 6353 | -8/Scraptown | Visited Sword Containment 6432 | -8/Scraptown | Visited Science Guys 6536 | -8/Scraptown | Visited Scrap Suit Storage 6632 | -8/Scraptown | Visited Infowarlord's Domain 6669 | -8/Scraptown | Visited A0-MCA Data Center 6683 | -8/Scraptown | Given a B- rating by A0-MCA 6686 | -8/Scraptown | Found A0-MCA's Component Scanner 6721 | -8/Scraptown | Visited Curators Association 6770 | -8/Scraptown | Visited Chapter 10 6839 | -8/Scraptown | Visited Analyses Database 6898 | -8/Scraptown | Visited DA-N13 Charitable Foundation 6908 | -8/Scraptown | Found DCF Scrap (29 items) 7922 | -8/Scraptown | Build established: Gunner 8359 | -8/Scraptown | Discovered new exit (range 5) 8443 | -8/Scraptown | Found Exp. Sensor Array 8523 | -8/Scraptown | Met Optimus 8523 | -8/Scraptown | Accepted into 0bPrime 8923 | -8/Scraptown | Civil war broke out across Scraptown 8928 | -8/Scraptown | Found Expert System 9029 | -8/Scraptown | Found Deploy-a-Sentry 9044 | -8/Scraptown | Optimus destroyed in the chaos of civil war 9054 | -8/Scraptown | Lost 14 allies 9060 | -8/Scraptown | Entered Factory 9060 | -6/Factory | Evolved 8 slots: Power x1, Propulsion x3, Utility x4 9061 | -6/Factory | Identified exit to Factory 9091 | -6/Factory | Lost 10 parts (1n5u4w) 9095 | -6/Factory | Assembled infested ambush trap array 9323 | -6/Factory | Identified exit to Lower Caves 9372 | -6/Factory | Build established: Mutant 9374 | -6/Factory | DAS Turret deployed 9400 | -6/Factory | Entered Lower Caves 9595 | -6/Lower Caves | Found Prototype Device 9595 | -6/Lower Caves | Identified Heart of Steel 9603 | -6/Lower Caves | Murdered Warlord Statue 9699 | -6/Lower Caves | Discovered new exit (range 15) 9712 | -6/Lower Caves | Identified exit to Lower Caves 9763 | -6/Lower Caves | Entered another Lower Caves area 9775 | -6/Lower Caves | Discovered exit to Factory (range 12) 9897 | -6/Lower Caves | Spotted B-75 Beast 9936 | -6/Lower Caves | Build established: Sprinter 9943 | -6/Lower Caves | Discovered new exit (range 8) 10011 | -6/Lower Caves | Identified exit to Zion 10013 | -6/Lower Caves | Entered Zion 10029 | -6/Zion | Discovered new exit (range 16) 10150 | -6/Zion | Learned location of Warlord (-4) 10179 | -6/Zion | Found Prototype Device 10179 | -6/Zion | Identified Mobile Refinery Mk. CCLXVII 10394 | -6/Zion | Heart of Steel transformed into Warbot 10466 | -6/Zion | Build established: Derelict-Mutant 10486 | -6/Zion | Given A8's code to call for help 10492 | -6/Zion | Turned away by Imprinter 10526 | -6/Zion | Learned Factory garrison access intel 10636 | -6/Zion | Gained Derelict followers 10695 | -6/Zion | Identified exit to Proximity Caves 10810 | -6/Zion | Entered Proximity Caves 10810 | -5/Proximity Caves | Accompanied by 6 allies (Warbot) 10865 | -5/Proximity Caves | Attracted the attention of an 0b10 checkpoint 10907 | -5/Proximity Caves | Attracted the attention of an 0b10 outpost 10919 | -5/Proximity Caves | Spotter reported a threat 10934 | -5/Proximity Caves | P-70 Sage assimilated allied OD-DUB(b) 10956 | -5/Proximity Caves | P-70 Sage assimilated allied 1Q-DNV(r) 10971 | -5/Proximity Caves | Lost 3 allies 10982 | -5/Proximity Caves | System corruption reached 10% 11072 | -5/Proximity Caves | Core integrity fell below 50% 11113 | -5/Proximity Caves | Lost 8 parts (1p4n2u1w) 11379 | -5/Proximity Caves | Spotted B-75 Beast 11470 | -5/Proximity Caves | Lost 5 parts (3u2w) 11470 | -5/Proximity Caves | Discovered exit to Factory (range 13) 11475 | -5/Proximity Caves | Entered Factory 11475 | -5/Factory | Evolved 2 slots: Propulsion x1, Utility x1 11476 | -5/Factory | Loaded intel: 4 garrison access locations 11642 | -5/Factory | Discovered new exit (range 11) 11649 | -5/Factory | Identified exit to Extension 11649 | -5/Factory | Entered Extension 11875 | -5/Extension | Build established: Hacker-Mutant 11893 | -5/Extension | Rescued a captive Derelict 11914 | -5/Extension | Rescued a captive Derelict 11962 | -5/Extension | Rescued a captive Derelict 11963 | -5/Extension | Rescued a captive Derelict 11983 | -5/Extension | Rescued a captive Derelict 12012 | -5/Extension | Rescued a captive Derelict 12213 | -5/Extension | Rescued A7 12315 | -5/Extension | Rescued a captive Derelict 12316 | -5/Extension | Rescued a captive Derelict 12386 | -5/Extension | Rescued a captive Derelict 12483 | -5/Extension | Discovered new exit (range 10) 12491 | -5/Extension | Disrupted transfer network 12501 | -5/Extension | Build established: Scavenger-Mutant 12511 | -5/Extension | Discovered new exit (range 6) 12557 | -5/Extension | Lost 3 allies 12580 | -5/Extension | Identified exit to Factory 12592 | -5/Extension | Identified exit to Cetus 12614 | -5/Extension | Entered Cetus 12614 | -5/Cetus | Accompanied by 4 allies (A7) 12619 | -5/Cetus | Acquired a Cetus Manufacturing Module code from A7 12631 | -5/Cetus | Spotted Cetus Guard 12631 | -5/Cetus | Spotted Cetus Guard 12634 | -5/Cetus | Destroyed Cetus Guard 12635 | -5/Cetus | Spotted Cetus Guard 12641 | -5/Cetus | Spotted Cetus Guard 12655 | -5/Cetus | Destroyed Cetus Guard 12665 | -5/Cetus | Allies destroyed Cetus Guard 12667 | -5/Cetus | Allies destroyed Cetus Guard 12735 | -5/Cetus | Started Cetus Manufacturing Module 12749 | -5/Cetus | Discovered new exit (range 16) 12760 | -5/Cetus | Manufactured an Enhanced Grunt 12770 | -5/Cetus | Spotted Cetus Guard 12771 | -5/Cetus | Spotted Cetus Guard 12774 | -5/Cetus | Spotted Cetus Guard 12775 | -5/Cetus | Spotted Cetus Guard 12779 | -5/Cetus | Allies destroyed Cetus Guard 12782 | -5/Cetus | Allies destroyed Cetus Guard 12783 | -5/Cetus | Destroyed Cetus Guard 12784 | -5/Cetus | Allies destroyed Cetus Guard 12785 | -5/Cetus | Manufactured an Enhanced Grunt 12793 | -5/Cetus | Discovered exit to Factory (range 15) 12799 | -5/Cetus | Met Revision 17 12810 | -5/Cetus | Manufactured an Enhanced Grunt 12835 | -5/Cetus | Manufactured an Enhanced Grunt 12848 | -5/Cetus | Identified exit to Archives 12860 | -5/Cetus | Manufactured an Enhanced Grunt 12898 | -5/Cetus | Entered Archives 12898 | -5/Archives | Accompanied by 7 allies (A7) 12913 | -5/Archives | Met Zhirov 12919 | -5/Archives | Reinforcements dispatched to Archives 12926 | -5/Archives | Discovered new exit (range 13) 12939 | -5/Archives | Identified exit to Hub_04(d) 12946 | -5/Archives | Entered Hub_04(d) 12946 | -5/Hub_04(d) | Accompanied by 6 allies 13292 | -5/Hub_04(d) | Network Hub disabled 13303 | -5/Hub_04(d) | System corruption reached 10% 13306 | -5/Hub_04(d) | Entered Factory 13306 | -4/Factory | Accompanied by 4 allies 13306 | -4/Factory | Evolved 2 slots: Weapon x2 13472 | -4/Factory | Identified exit to Upper Caves 13605 | -4/Factory | Build established: Scavenger-Tank 14143 | -4/Factory | Entered Upper Caves 14485 | -4/Upper Caves | Encountered a Warlord checkpoint 14507 | -4/Upper Caves | Discovered new exit (range 6) 14515 | -4/Upper Caves | Entered another Upper Caves area 14703 | -4/Upper Caves | Found DCF Scrap (15 items) 14962 | -4/Upper Caves | Learned Research terminal intel 15203 | -4/Upper Caves | Attracted the attention of an 0b10 checkpoint 15246 | -4/Upper Caves | Discovered new exit (range 13) 15251 | -4/Upper Caves | Lost 3 parts (1u2w) 15296 | -4/Upper Caves | Entered Warlord 15489 | -4/Warlord | Found Prototype Reactor 15489 | -4/Warlord | Identified Vortex Chain Reactor 15496 | -4/Warlord | Found Prototype Device 15496 | -4/Warlord | Identified Exp. Cloaking Device 15510 | -4/Warlord | Found Prototype Device 15510 | -4/Warlord | Identified System Purifier 15513 | -4/Warlord | Found Prototype Processor 15513 | -4/Warlord | Identified Exp. Core Analyzer 15729 | -4/Warlord | Visited the Vortex Lab 15736 | -4/Warlord | Found Prototype Energy Gun 15736 | -4/Warlord | Identified Vortex Shotgun 15742 | -4/Warlord | Warlord's base attacked by MAIN.C 15746 | -4/Warlord | Found Vortex Shotgun 15752 | -4/Warlord | Found Prototype Energy Gun 15755 | -4/Warlord | Found Prototype Energy Gun 15756 | -4/Warlord | Identified Vortex Rail (x2) 15900 | -4/Warlord | Found Signal Generator 16092 | -4/Warlord | Warlord forces counterattacked 16098 | -4/Warlord | Rebuked by Warlord 16260 | -4/Warlord | Spotted B-90 Cyclops 16281 | -4/Warlord | Spotted Striker 16319 | -4/Warlord | Destroyed Striker 16417 | -4/Warlord | Warlord base infiltrated, sounded retreat 16418 | -4/Warlord | Enhanced Grunt warped into view 16418 | -4/Warlord | Enhanced Grunt warped into view 16418 | -4/Warlord | Enhanced Grunt warped into view 16418 | -4/Warlord | Enhanced Demolisher warped into view 16418 | -4/Warlord | Enhanced Demolisher warped into view 16418 | -4/Warlord | Enhanced Demolisher warped into view 16481 | -4/Warlord | Spotted Striker 16514 | -4/Warlord | Lost 3 allies 16577 | -4/Warlord | Lost 5 allies 16598 | -4/Warlord | Spotted Executioner 16616 | -4/Warlord | Spotted Executioner 16619 | -4/Warlord | Destroyed Executioner 16640 | -4/Warlord | Lost 4 allies 16646 | -4/Warlord | Spotted Executioner 16665 | -4/Warlord | Found Prototype Device 16665 | -4/Warlord | Identified Adv. Kinecellerator 16668 | -4/Warlord | Spotted B-90 Cyclops 16674 | -4/Warlord | Spotted Executioner 16693 | -4/Warlord | Spotted Executioner 16748 | -4/Warlord | Destroyed 11 combat bots 16754 | -4/Warlord | Discovered new exit (range 12) 16789 | -4/Warlord | Lost 11 allies 16878 | -4/Warlord | Entered Proximity Caves 16956 | -3/Proximity Caves | Build established: Scavenger-Gunner 17202 | -3/Proximity Caves | Discovered new exit (range 9) 17215 | -3/Proximity Caves | Entered Research 17215 | -3/Research | Evolved 2 slots: Utility x2 17216 | -3/Research | Identified exit to Quarantine 17219 | -3/Research | Loaded intel: 24 terminal locations 17415 | -3/Research | Revision forces began assault on 0b10 17515 | -3/Research | Met up with Revision 17++ 17879 | -3/Research | Build established: Scavenger-Tank 17880 | -3/Research | Lost 4 allies 17915 | -3/Research | Research terminal network offline 17926 | -3/Research | Discovered new exit (range 11) 17944 | -3/Research | Identified exit to Research 18036 | -3/Research | Found Fusion Bomb Launcher 18050 | -3/Research | Entered another Research area 18050 | -2/Research | Evolved 2 slots: Utility x2 18411 | -2/Research | Discovered new exit (range 5) 18420 | -2/Research | Identified exit to Testing 18423 | -2/Research | Entered Testing 18518 | -2/Testing | Rewired PX-CL9XOXUODU 18584 | -2/Testing | Scanned by Researcher 18607 | -2/Testing | Found Prototype Ballistic Cannon 18607 | -2/Testing | Identified Omega Cannon 18868 | -2/Testing | Garrison activated, responded to threat 18887 | -2/Testing | Destroyed 8 combat bots 19038 | -2/Testing | Found Prototype Energy Gun 19038 | -2/Testing | Identified Hyp. EM Gauss Rifle 19124 | -2/Testing | Build established: Tank 19227 | -2/Testing | Lost 16 parts (2p3n6u5w) 19238 | -2/Testing | Core integrity fell below 50% 19245 | -2/Testing | Discovered new exit (range 10) 19253 | -2/Testing | Core integrity fell below 20% 19253 | -2/Testing | Identified exit to Access 19254 | -2/Testing | Entered Access 19254 | -1/Access | Evolved 2 slots: Utility x2 19372 | -1/Access | Core integrity fell below 50% 19405 | -1/Access | Discovered new exit (range 7) 19504 | -1/Access | Search patrols dispatched 19529 | -1/Access | Entered Command 19765 | -1/Command | Lost 3 parts (2n1w) 19789 | -1/Command | Core integrity fell below 20% 19838 | -1/Command | Destroyed by S-43 Plague with Heavy Machine Gun Last Messages --------------- 19790_ Dropped Mic. Antimatter Reactor. 19794_ ALERT: Potential suspicious activity detected, Programmers report to Command Zone 3Y. 19794_ Destroyed Imp. Antigrav System. 19794_ Broken Adv. Signal Interpreter destroyed. 19797_ Terminal disabled. 19800_ Adv. System Shield destroyed. 19806_ Dropped Signal Generator. 19807_ Imp. Melee Analysis Suite destroyed. 19810_ Triggered Shock Trap. 19810_ The floor emits a surge of raw power. 19810_ System corrupted (+1). 19812_ ALERT: Intercepting significant anomalous signal. Dispatching assault force. 19815_ ALERT: Intercepting significant anomalous signal. Redirecting assault force. 19826_ Cld. Field Propulsion Drive destroyed. 19826_ Vibroblade follow-up attack on S-43 Plague. 19826_ S-43 Plague destroyed. 19829_ Acquired 35 matter. Map ----- +----------------------------------------------------+ | ?????????????????????????????????????????????????? | | ?????????????????????????????????????????????????? | | ?????????????????????????????????????????????????? | | ?????????????????????????????????????????????????? | | ?????????????????????????????????????????????????? | | ?????????????????????????????????????????????????? | | ?????????????????????????????????????????????????? | | ?????????????????????????????????????????????????? | | ?????????????????????????????????????????????????? | | ?????????????????????????????????????????????????? | | ?????????????????????????????????????????????????? | | ?????????????????????????????????? ?????????? | | ?????????????????????????????????? ???????? | | ?????????????????????????????????? ???????? | | ?????????????????????????????????? ????????? | | ?????????????????????????????????? ????????? | | ?????????????????????????????????? #?????????? | | ?????????????????????????????????? #?????????? | | ????????????????###???#####??????# k#?????????? | | ????????????????# ??# #??????# #?????????? | | ????????????W ### W ### W ######## #?????????? | | ??????????? / #?????????? | | ??????????? / #?????????? | | ?????????? s / #?????????? | | ?????????? / #?????????? | | ?????????? @ R #?????????? | | ???????????????## W ### W ######## #?????????? | | ??????????????????????# =#??????# #?????????? | | ??????????????????????#####??????# + ???????? | | ?????????????????????????????????# # ?????? | | ?????????????????????????????????# #? ????? | | ?????????????????????????????????# #???###???? | | ?????????????????????????????????# #?????????? | | ?????????????????????????????????# #?????????? | | ?????????????????????????????????# #?????????? | | ?????????????????????????????????# #?????????? | | ?????????????????????????????????# +?????????? | | ?????????????????????????????????# #?????????? | | ?????????????????????????????????# +?????????? | | ?????????????????????????????????# #?????????? | | ?????????????????????????????????# #?????????? | | ????????????????????????????????###### #?????????? | | ??????????????????????????####### ] # #?????????? | | ?????????????????????????? # # #?????????? | | ?????????????????????????? # # #????+#???? | | ?????????????????????????"" # # ##### #???? | | ?????????????????????????"" # + #???? | | ?????????????????????????"" # # #???? | | ????????????????????????#T # # #???? | | ????????????????????????#"" # + +???? | +----------------------------------------------------+ Best States ------------- Heat Dissipation 159 Coolant Potential 50 Energy Generation 55 Energy Capacity 700 Matter Stores 300 Matter Capacity 800 Sight Range 21 Robot Scan Range 18 Terrain Scan Range 20 Terrain Scan Density 10 Jamming Range 14 Cloak Strength 4 Armor Coverage 2000 Weapon Shielding 33 Weapon Cycling 25 Evasion (%) 65 Melee Accuracy 8 Core Analysis 8 Recoil Reduction 6 Energy Filtering 50 Kinecelleration 50 Offensive Hacking 36 Defensive Hacking 28 Item Schematics ----------------- Imp. Cryofiber Web | -8/Recycling | Hacked Imp. Gravmag System | -8/Recycling | Hacked Imp. Transmission Jammer | -6/Zion | Archive Drone Bay | -6/Zion | Archive Lgt. Fission Core | -6/Zion | Archive Imp. Component Analysis Suite | -6/Zion | Archive Adv. Cryofiber Web | -6/Zion | Archive Fusion Compressor | -6/Zion | Archive Imp. Thermal Shield | -6/Zion | Archive Thermal Shield | -6/Zion | Archive Imp. Weapon Cycler | -6/Zion | Archive Enh. Optical Array | -6/Zion | Archive Imp. Hacking Suite | -6/Zion | Archive Lance | -6/Zion | Archive Imp. Thermal Generator | -6/Zion | Archive Adv. Coolant Injector | -6/Zion | Archive Thunder Leg | -5/Extension | Hacked Imp. Thunder Leg | -5/Extension | Hacked Exp. EM Shield | -2/Testing | Archive Adv. Kinecellerator | -2/Testing | Archive Exp. Energy Well | -2/Testing | Archive Robot Schematics ------------------ M-28 Smith | -6/Zion | Archive H-66 Slayer | -6/Zion | Archive M-22 Extractor | -6/Zion | Archive L-61 Swordsman | -6/Zion | Archive A-15 Conveyor | -2/Testing | Archive Fabricated ------------ Nothing Repaired ---------- Nothing Alien Tech Used ----------------- None Achievements -------------- Revolutionary Research Challenges ------------ None Game ------ Seed ShadingTacticalImmobilizer Manual? 0 Play Time 03:07:19 Cumulative 279.5 hours Start 2025.05.17 @ 20:20:55 End 2025.05.17 @ 23:58:05 Sessions 3 Manual Loads 0 Difficulty Rogue Special Mode None Game No. 196 Rogue 196 Adventurer 0 Explorer 0 Win Type - Total 21 Types 17/0/2/2/0/0/0/0/0/0 Lore% 84 Gallery% 72 Achievement% 63 Wizard Run 0 Options --------- Layout 0 ASCII 1 Keyboard 1 Movement Arrows Keybinds 0 Fullscreen 1 Font 18/Terminus Map View 76x50 Zoom Use 0% Tactical HUD 1 Map Filters NONE Filters NONE Steam 1 RUN: 79cbe2e7-a27f-4499-bad2-f16e01a1eb41